fUSD/lending_fUSD_20250329
["ID","MTS","AMOUNT","RATE_DAILY","PERIOD"]
[356827455,1743274307072,-519.03543255,0.00048767,120]
[356827456,1743274307104,-500.0,0.00048767,120]
[356827457,1743274307136,-500.0,0.00048767,120]
[356827458,1743274307168,-500.0,0.00048767,120]
[356827459,1743274307202,-550.56353918,0.00048767,120]
[356827460,1743274307252,-500.0,0.00048767,120]
[356827461,1743274307303,-500.0,0.00048767,120]
[356827462,1743274307352,-500.0,0.00048767,120]
[356827463,1743274307400,-500.0,0.00048767,120]
[356827464,1743274307450,-500.0,0.00048767,120]
[356827465,1743274307500,-500.0,0.00048767,120]
[356827466,1743274307549,-754.16,0.00048767,120]
[356827467,1743274307599,-181.77831451,0.00048767,120]
[356827468,1743274307642,-2755.38,0.00048767,120]
[356827469,1743274307689,-573.74477416,0.00048767,120]
[356827470,1743274307733,-538.52,0.00048767,120]
[356827471,1743274307773,-500.0,0.00048767,120]
[356827472,1743274307816,-827.04,0.00048767,120]
[356827473,1743274307857,-446.83514535,0.00048767,120]
[356827474,1743274307897,-500.0,0.00048767,120]
[356827475,1743274307937,-500.0,0.00048767,120]
[356827476,1743274307978,-579.35,0.00048767,120]
[356827477,1743274308017,-1237.71,0.00048767,120]
[356827478,1743274308058,-884.89,0.00048767,120]
[356827479,1743274308097,-500.0,0.00048767,120]
[356827480,1743274308137,-500.0,0.00048767,120]
[356827481,1743274308176,-500.0,0.00048767,120]
[356827482,1743274308216,-500.0,0.00048767,120]
[356827483,1743274308255,-1154.41,0.00048767,120]
[356827484,1743274308296,-500.0,0.00048767,120]
[356827485,1743274308336,-250.01606108,0.000488,120]
[356827486,1743274308379,-905.46149146,0.000488,120]
[356827487,1743274308420,-1838.11644652,0.000488,120]
[356827488,1743274308463,-162.55,0.000489,120]
[356827489,1743274308504,-1545.72,0.000489,120]
[356827490,1743274308546,-659.07,0.000489,120]
[356827491,1743274308587,-1000.0,0.00048999,120]
[356827492,1743274308631,-50000.0,0.00049,49]
[356827493,1743274308676,-50000.0,0.00049,39]
[356827494,1743274308718,-5225.30823429,0.00049,120]
[356827495,1743274308759,-473.0038682,0.00049,120]
[356827496,1743274308800,-152.76048916,0.00049,120]
[356827497,1743274308842,-601.82889745,0.00049,120]
[356827498,1743274308882,-232.92740753,0.00049,120]
[356827499,1743274308923,-1883.13169162,0.00049,120]
[356827500,1743274308965,-178.67718042,0.00049,120]
[356827501,1743274309006,-182.79587564,0.00049,120]
[356827502,1743274309048,-153756.16009279,0.00049,120]
[356827503,1743274309088,-616.0,0.00049,90]
[356827504,1743274309132,-854507.74,0.00049,120]
[356827505,1743274309171,-288.0,0.00049,120]
[356827506,1743274309211,-450.0,0.00049,50]
[356827507,1743274309251,-500.0,0.00049041,120]
[356827508,1743274309293,-1470.43,0.00049041,120]
[356827509,1743274309587,-566.18,0.00049041,120]
[356827510,1743274309621,-500.0,0.00049041,120]
[356827511,1743274309656,-500.0,0.00049041,120]
[356827512,1743274309692,-500.0,0.00049041,120]
[356827513,1743274309733,-1734.11,0.00049041,120]
[356827514,1743274309768,-500.0,0.00049041,120]
[356827515,1743274309802,-1197.94,0.00049041,120]
[356827516,1743274309836,-500.0,0.00049041,120]
[356827517,1743274309871,-500.0,0.00049041,120]
[356827518,1743274309907,-1644.35,0.00049041,120]
[356827519,1743274309943,-916.03,0.00049041,120]
[356827520,1743274309979,-1870.6,0.00049041,120]
[356827521,1743274310014,-581.81,0.00049041,120]
[356827522,1743274310050,-500.0,0.00049041,120]
[356827523,1743274310087,-500.0,0.00049041,120]
[356827524,1743274310123,-500.0,0.00049041,120]
[356827525,1743274310160,-2884.05,0.00049041,120]
[356827526,1743274310199,-500.0,0.00049041,120]
[356827527,1743274310237,-500.0,0.00049041,120]
[356827528,1743274310275,-297.29848266,0.00049041,120]
[356827529,1743274310313,-653.98,0.00049041,120]
[356827530,1743274310352,-500.0,0.00049041,120]
[356827531,1743274310393,-580.84,0.00049041,120]
[356827532,1743274310430,-582.27,0.00049041,120]
[356827533,1743274310467,-500.0,0.00049041,120]
[356827534,1743274310502,-1506.84,0.00049041,120]
[356827535,1743274310545,-500.0,0.00049041,120]
[356827536,1743274310582,-500.0,0.00049041,120]
[356827537,1743274310618,-500.0,0.00049041,120]
[356827538,1743274310655,-632.3341154,0.00049041,120]
[356827539,1743274310694,-500.0,0.00049041,120]
[356827540,1743274310729,-500.0,0.00049041,120]
[356827541,1743274310765,-888.79,0.00049041,120]
[356827542,1743274310801,-512.15292213,0.00049041,120]
[356827543,1743274310836,-623.1216541,0.00049041,120]
[356827544,1743274310873,-500.0,0.00049041,120]
[356827545,1743274310909,-1880.01,0.00049041,120]
[356827546,1743274310946,-2005.61,0.00049041,120]
[356827547,1743274310983,-996.89,0.00049041,120]
[356827548,1743274311020,-500.0,0.00049041,120]
[356827549,1743274311057,-500.0,0.00049041,120]
[356827550,1743274311094,-1505.78,0.00049041,120]
[356827551,1743274311130,-1116.73,0.00049041,120]
[356827552,1743274311165,-2661.44,0.00049041,120]
[356827553,1743274311200,-500.0,0.00049041,120]
[356827554,1743274311235,-921.65,0.00049041,120]
[356827555,1743274311270,-500.0,0.00049041,120]
[356827556,1743274311305,-575.34126368,0.00049041,120]
[356827557,1743274311342,-1776.93,0.00049041,120]
[356827558,1743274311394,-590.4158408,0.00049041,120]
[356827559,1743274311434,-500.0,0.00049041,120]
[356827560,1743274311474,-500.0,0.00049041,120]
[356827561,1743274311513,-598.93,0.00049041,120]
[356827562,1743274311553,-2015.91,0.00049041,120]
[356827563,1743274311590,-1141.95,0.00049041,120]
[356827564,1743274311628,-500.0,0.00049041,120]
[356827565,1743274311667,-2421.08,0.00049041,120]
[356827566,1743274311705,-1135.85,0.00049041,120]
[356827567,1743274311742,-1095.74,0.00049041,120]
[356827568,1743274311781,-597.13,0.00049041,100]
[356827569,1743274311818,-500.0,0.00049041,120]
[356827570,1743274311856,-500.0,0.00049041,120]
[356827571,1743274311894,-625.19,0.00049041,120]
[356827572,1743274311932,-276.45540199,0.00049041,120]
[356827573,1743274311970,-847.65,0.00049041,120]
[356827574,1743274312008,-620.83,0.00049041,120]
[356827575,1743274312045,-500.0,0.00049041,120]
[356827576,1743274312082,-500.0,0.00049041,120]
[356827577,1743274312118,-630.08,0.00049041,120]
[356827578,1743274312157,-500.0,0.00049041,120]
[356827579,1743274312200,-500.0,0.00049041,120]
[356827580,1743274312238,-500.0,0.00049041,120]
[356827581,1743274312277,-500.0,0.00049041,120]
[356827582,1743274312316,-500.0,0.00049041,120]
[356827583,1743274312354,-500.0,0.00049041,120]
[356827584,1743274312393,-197.42368252,0.00049041,120]
[356827585,1743274312432,-500.0,0.00049041,120]
[356827586,1743274312471,-312.18223599,0.00049041,120]
[356827587,1743274312511,-500.0,0.00049041,120]
[356827588,1743274312550,-500.0,0.00049041,120]
[356827589,1743274312587,-754.16,0.00049041,120]
[356827590,1743274312622,-2755.38,0.00049041,120]
[356827591,1743274312658,-538.52,0.00049041,120]
[356827592,1743274312693,-500.0,0.00049041,120]
[356827593,1743274312729,-827.04,0.00049041,120]
[356827594,1743274312765,-500.0,0.00049041,120]
[356827595,1743274312801,-500.0,0.00049041,120]
[356827596,1743274312840,-579.35,0.00049041,120]
[356827597,1743274312875,-1237.71,0.00049041,120]
[356827599,1743274312911,-884.89,0.00049041,120]
[356827600,1743274312949,-500.0,0.00049041,120]
[356827601,1743274312984,-500.0,0.00049041,120]
[356827602,1743274313021,-500.0,0.00049041,120]
[356827603,1743274313058,-500.0,0.00049041,120]
[356827604,1743274313095,-1154.41,0.00049041,120]
[356827605,1743274313131,-500.0,0.00049164,120]
[356827606,1743274313166,-206.14,0.000492,120]
[356827607,1743274313201,-356.21082316,0.00049315,120]
[356827608,1743274313236,-509.55504008,0.00049315,120]
[356827609,1743274313458,-1470.43,0.00049315,120]
[356827610,1743274313494,-566.18,0.00049315,120]
[356827611,1743274313531,-500.0,0.00049315,120]
[356827612,1743274313569,-500.0,0.00049315,120]
[356827613,1743274313604,-500.0,0.00049315,120]
[356827614,1743274313641,-1734.11,0.00049315,120]
[356827615,1743274313676,-500.0,0.00049315,120]
[356827616,1743274313709,-1197.94,0.00049315,120]
[356827617,1743274313744,-500.0,0.00049315,120]
[356827618,1743274313778,-500.0,0.00049315,120]
[356827619,1743274313813,-1644.35,0.00049315,120]
[356827620,1743274313849,-916.03,0.00049315,120]
[356827621,1743274313883,-1870.6,0.00049315,120]
[356827622,1743274313920,-581.81,0.00049315,120]
[356827623,1743274313956,-500.0,0.00049315,120]
[356827624,1743274313991,-500.0,0.00049315,120]
[356827625,1743274314027,-500.0,0.00049315,120]
[356827626,1743274314064,-2884.05,0.00049315,120]
[356827627,1743274314099,-500.0,0.00049315,120]
[356827628,1743274314136,-500.0,0.00049315,120]
[356827629,1743274314171,-653.98,0.00049315,120]
[356827630,1743274314207,-500.0,0.00049315,120]
[356827631,1743274314243,-580.84,0.00049315,120]
[356827632,1743274314279,-582.27,0.00049315,120]
[356827633,1743274314314,-500.0,0.00049315,120]
[356827634,1743274314350,-1506.84,0.00049315,120]
[356827635,1743274314386,-500.0,0.00049315,120]
[356827636,1743274314421,-500.0,0.00049315,120]
[356827637,1743274314458,-615.57023538,0.00049315,120]
[356827638,1743274314493,-500.0,0.00049315,120]
[356827639,1743274314527,-500.0,0.00049315,120]
[356827640,1743274314566,-888.79,0.00049315,120]
[356827641,1743274314602,-500.0,0.00049315,120]
[356827642,1743274314638,-1880.01,0.00049315,120]
[356827643,1743274314676,-2005.61,0.00049315,120]
[356827644,1743274314715,-996.89,0.00049315,120]
[356827645,1743274314750,-500.0,0.00049315,120]
[356827646,1743274314787,-244.23342693,0.00049315,120]
[356827647,1743274314822,-1505.78,0.00049315,120]
[356827648,1743274314858,-1116.73,0.00049315,120]
[356827649,1743274314893,-2661.44,0.00049315,120]
[356827650,1743274314928,-500.0,0.00049315,120]
[356827651,1743274314963,-921.65,0.00049315,120]
[356827652,1743274314998,-500.0,0.00049315,120]
[356827653,1743274315033,-1776.93,0.00049315,120]
[356827654,1743274315067,-500.0,0.00049315,120]
[356827655,1743274315104,-500.0,0.00049315,120]
[356827656,1743274315141,-598.93,0.00049315,120]
[356827657,1743274315178,-2015.91,0.00049315,120]
[356827658,1743274315215,-1141.95,0.00049315,120]
[356827659,1743274315251,-500.0,0.00049315,120]
[356827660,1743274315290,-2421.08,0.00049315,120]
[356827661,1743274315327,-1135.85,0.00049315,120]
[356827662,1743274315363,-1095.74,0.00049315,120]
[356827663,1743274315399,-597.13,0.00049315,100]
[356827664,1743274315432,-500.0,0.00049315,120]
[356827665,1743274315465,-500.0,0.00049315,120]
[356827666,1743274315498,-625.19,0.00049315,120]
[356827667,1743274315535,-847.65,0.00049315,120]
[356827668,1743274315574,-620.83,0.00049315,120]
[356827669,1743274315611,-500.0,0.00049315,120]
[356827670,1743274315648,-500.0,0.00049315,120]
[356827671,1743274315684,-630.08,0.00049315,120]
[356827672,1743274315720,-500.0,0.00049315,120]
[356827673,1743274315754,-500.0,0.00049315,120]
[356827674,1743274315788,-500.0,0.00049315,120]
[356827675,1743274315824,-500.0,0.00049315,120]
[356827676,1743274315862,-500.0,0.00049315,120]
[356827677,1743274315901,-500.0,0.00049315,120]
[356827678,1743274315938,-500.0,0.00049315,120]
[356827679,1743274315975,-370.68328004,0.00049315,120]
[356827680,1743274316013,-500.0,0.00049315,120]
[356827681,1743274316050,-754.16,0.00049315,120]
[356827682,1743274316086,-2755.38,0.00049315,120]
[356827683,1743274316123,-538.52,0.00049315,120]
[356827684,1743274316160,-500.0,0.00049315,120]
[356827685,1743274316198,-827.04,0.00049315,120]
[356827686,1743274316234,-500.0,0.00049315,120]
[356827687,1743274316271,-500.0,0.00049315,120]
[356827688,1743274316307,-500.0,0.00049315,120]
[356827689,1743274316345,-500.0,0.00049315,120]
[356827690,1743274316383,-500.0,0.00049315,120]
[356827691,1743274316422,-500.0,0.00049315,120]
[356827692,1743274316461,-500.0,0.00049315,120]
[356827693,1743274316497,-500.0,0.00049315,120]
[356827694,1743274316537,-500.0,0.00049315,120]
[356827695,1743274316574,-500.0,0.00049315,120]
[356827696,1743274316611,-381.9789774,0.00049315,120]
[356827697,1743274316647,-500.0,0.00049315,120]
[356827698,1743274316683,-500.0,0.00049315,120]
[356827699,1743274316721,-579.35,0.00049315,120]
[356827700,1743274316757,-1237.71,0.00049315,120]
[356827701,1743274316793,-884.89,0.00049315,120]
[356827702,1743274316832,-500.0,0.00049315,120]
[356827703,1743274316869,-500.0,0.00049315,120]
[356827704,1743274316908,-500.0,0.00049315,120]
[356827705,1743274316945,-500.0,0.00049315,120]
[356827706,1743274316980,-2568.40084536,0.00049346,120]
[356827707,1743274317017,-153.91,0.00049352,120]
[356827708,1743274317052,-3000.00000008,0.000494,120]
[356827709,1743274317263,-500.0,0.000494,120]
[356827710,1743274317307,-371.65141492,0.000495,120]
[356827711,1743274317343,-1000.0,0.000495,120]
[356827712,1743274317378,-699.93619847,0.000495,120]
[356827713,1743274317415,-1470.43,0.00049589,120]
[356827714,1743274317454,-566.18,0.00049589,120]
[356827715,1743274317491,-500.0,0.00049589,120]
[356827716,1743274317529,-500.0,0.00049589,120]
[356827717,1743274317570,-545.57773215,0.00049589,120]
[356827718,1743274317606,-1734.11,0.00049589,120]
[356827719,1743274317645,-500.0,0.00049589,120]
[356827720,1743274317680,-1197.94,0.00049589,120]
[356827721,1743274317714,-506.68207605,0.00049589,120]
[356827722,1743274317749,-492.93490473,0.00049589,120]
[356827723,1743274317783,-1644.35,0.00049589,120]
[356827724,1743274317819,-916.03,0.00049589,120]
[356827725,1743274317856,-1870.6,0.00049589,120]
[356827726,1743274317893,-581.81,0.00049589,120]
[356827727,1743274317929,-552.86338105,0.00049589,120]
[356827728,1743274317966,-500.0,0.00049589,120]
[356827729,1743274318001,-500.0,0.00049589,120]
[356827730,1743274318037,-2884.05,0.00049589,120]
[356827731,1743274318074,-500.0,0.00049589,120]
[356827732,1743274318113,-500.0,0.00049589,120]
[356827733,1743274318151,-653.98,0.00049589,120]
[356827734,1743274318188,-500.0,0.00049589,120]
[356827735,1743274318223,-580.84,0.00049589,120]
[356827736,1743274318259,-582.27,0.00049589,120]
[356827737,1743274318296,-500.0,0.00049589,120]
[356827738,1743274318332,-1506.84,0.00049589,120]
[356827739,1743274318367,-500.0,0.00049589,120]
[356827740,1743274318402,-429.68307684,0.00049589,120]
[356827741,1743274318437,-500.0,0.00049589,120]
[356827742,1743274318471,-500.0,0.00049589,120]
[356827743,1743274318505,-888.79,0.00049589,120]
[356827744,1743274318542,-500.0,0.00049589,120]
[356827745,1743274318578,-1880.01,0.00049589,120]
[356827746,1743274318615,-2005.61,0.00049589,120]
[356827747,1743274318652,-996.89,0.00049589,120]
[356827748,1743274318687,-500.0,0.00049589,120]
[356827749,1743274318720,-1505.78,0.00049589,120]
[356827750,1743274318753,-1116.73,0.00049589,120]
[356827751,1743274318787,-2661.44,0.00049589,120]
[356827752,1743274318820,-500.0,0.00049589,120]
[356827753,1743274318855,-921.65,0.00049589,120]
[356827754,1743274318891,-500.0,0.00049589,120]
[356827755,1743274318925,-1776.93,0.00049589,120]
[356827756,1743274318958,-500.0,0.00049589,120]
[356827757,1743274318991,-500.0,0.00049589,120]
[356827758,1743274319024,-598.93,0.00049589,120]
[356827759,1743274319060,-2015.91,0.00049589,120]
[356827760,1743274319098,-1141.95,0.00049589,120]
[356827761,1743274319136,-500.0,0.00049589,120]
[356827762,1743274319174,-2421.08,0.00049589,120]
[356827763,1743274319212,-1135.85,0.00049589,120]
[356827764,1743274319248,-1095.74,0.00049589,120]
[356827765,1743274319284,-597.13,0.00049589,100]
[356827766,1743274319317,-500.0,0.00049589,120]
[356827767,1743274319351,-500.0,0.00049589,120]
[356827768,1743274319385,-625.19,0.00049589,120]
[356827769,1743274319418,-847.65,0.00049589,120]
[356827770,1743274319452,-620.83,0.00049589,120]
[356827771,1743274319486,-500.0,0.00049589,120]
[356827772,1743274319521,-500.0,0.00049589,120]
[356827773,1743274319557,-630.08,0.00049589,120]
[356827774,1743274319590,-500.0,0.00049589,120]
[356827775,1743274319625,-500.0,0.00049589,120]
[356827776,1743274319659,-500.0,0.00049589,120]
[356827777,1743274319693,-500.0,0.00049589,120]
[356827778,1743274319730,-525.97673769,0.00049589,120]
[356827779,1743274319766,-500.0,0.00049589,120]
[356827780,1743274319803,-500.0,0.00049589,120]
[356827781,1743274319843,-477.95410229,0.00049589,120]
[356827782,1743274319881,-754.16,0.00049589,120]
[356827783,1743274319918,-2755.38,0.00049589,120]
[356827784,1743274319955,-538.52,0.00049589,120]
[356827785,1743274319990,-500.0,0.00049589,120]
[356827786,1743274320024,-827.04,0.00049589,120]
[356827787,1743274320061,-500.0,0.00049589,120]
[356827788,1743274320095,-500.0,0.00049589,120]
[356827789,1743274320132,-579.35,0.00049589,120]
[356827790,1743274320167,-1237.71,0.00049589,120]
[356827791,1743274320202,-884.89,0.00049589,120]
[356827792,1743274320238,-500.0,0.00049589,120]
[356827793,1743274320274,-500.0,0.00049589,120]
[356827794,1743274320310,-500.0,0.00049589,120]
[356827795,1743274320346,-195.49054767,0.00049589,120]
[356827796,1743274320382,-231.48148,0.000496,120]
[356827797,1743274320416,-182970.84497219,0.000496,120]
[356827798,1743274320452,-150.0,0.00049676,120]
[356827799,1743274320488,-500.0,0.00049712,120]
[356827800,1743274320522,-1000.0,0.00049748,45]
[356827801,1743274320558,-2000.0,0.0004978,45]
[356827802,1743274320593,-206.0,0.000498,120]
[356827803,1743274320627,-114054.16757037,0.000498,120]
[356827804,1743274320661,-154.0,0.00049839,120]
[356827805,1743274320695,-1470.43,0.00049863,120]
[356827806,1743274320906,-566.18,0.00049863,120]
[356827807,1743274320944,-500.0,0.00049863,120]
[356827808,1743274320982,-519.72074508,0.00049863,120]
[356827809,1743274321019,-1734.11,0.00049863,120]
[356827810,1743274321056,-500.0,0.00049863,120]
[356827811,1743274321096,-1197.94,0.00049863,120]
[356827812,1743274321136,-1644.35,0.00049863,120]
[356827813,1743274321173,-916.03,0.00049863,120]
[356827814,1743274321211,-1870.6,0.00049863,120]
[356827815,1743274321250,-581.81,0.00049863,120]
[356827816,1743274321289,-500.0,0.00049863,120]
[356827817,1743274321327,-629.53522993,0.00049863,120]
[356827818,1743274321365,-2884.05,0.00049863,120]
[356827819,1743274321407,-500.0,0.00049863,120]
[356827820,1743274321445,-590.02161075,0.00049863,120]
[356827821,1743274321481,-653.98,0.00049863,120]
[356827822,1743274321517,-500.0,0.00049863,120]
[356827823,1743274321552,-580.84,0.00049863,120]
[356827824,1743274321587,-582.27,0.00049863,120]
[356827825,1743274321621,-500.0,0.00049863,120]
[356827826,1743274321658,-1506.84,0.00049863,120]
[356827827,1743274321694,-500.0,0.00049863,120]
[356827828,1743274321731,-500.0,0.00049863,120]
[356827829,1743274321768,-500.0,0.00049863,120]
[356827830,1743274321806,-888.79,0.00049863,120]
[356827831,1743274321845,-500.0,0.00049863,120]
[356827832,1743274321883,-1880.01,0.00049863,120]
[356827833,1743274321921,-2005.61,0.00049863,120]
[356827834,1743274321959,-996.89,0.00049863,120]
[356827835,1743274321997,-396.29354372,0.00049863,120]
[356827836,1743274322035,-1505.78,0.00049863,120]
[356827837,1743274322073,-1116.73,0.00049863,120]
[356827838,1743274322111,-2661.44,0.00049863,120]
[356827839,1743274322153,-500.0,0.00049863,120]
[356827840,1743274322190,-921.65,0.00049863,120]
[356827841,1743274322227,-500.0,0.00049863,120]
[356827842,1743274322266,-1776.93,0.00049863,120]
[356827843,1743274322307,-500.0,0.00049863,120]
[356827844,1743274322348,-500.0,0.00049863,120]
[356827845,1743274322387,-598.93,0.00049863,120]
[356827846,1743274322427,-2015.91,0.00049863,120]
[356827847,1743274322465,-1141.95,0.00049863,120]
[356827848,1743274322503,-206.40272154,0.00049863,120]
[356827849,1743274322544,-2421.08,0.00049863,120]
[356827850,1743274322582,-1135.85,0.00049863,120]
[356827851,1743274322620,-1095.74,0.00049863,120]
[356827852,1743274322661,-597.13,0.00049863,100]
[356827853,1743274322700,-500.0,0.00049863,120]
[356827854,1743274322738,-500.0,0.00049863,120]
[356827855,1743274322776,-625.19,0.00049863,120]
[356827856,1743274322814,-847.65,0.00049863,120]
[356827857,1743274322852,-620.83,0.00049863,120]
[356827858,1743274322891,-481.9716475,0.00049863,120]
[356827859,1743274322928,-437.40477047,0.00049863,120]
[356827860,1743274322967,-630.08,0.00049863,120]
[356827861,1743274323004,-500.0,0.00049863,120]
[356827862,1743274323044,-500.0,0.00049863,120]
[356827863,1743274323084,-500.0,0.00049863,120]
[356827864,1743274323126,-500.0,0.00049863,120]
[356827865,1743274323168,-500.0,0.00049863,120]
[356827866,1743274323207,-500.0,0.00049863,120]
[356827867,1743274323245,-754.16,0.00049863,120]
[356827868,1743274323286,-2755.38,0.00049863,120]
[356827869,1743274323326,-538.52,0.00049863,120]
[356827870,1743274323368,-500.0,0.00049863,120]
[356827871,1743274323416,-827.04,0.00049863,120]
[356827872,1743274323459,-527.07205703,0.00049863,120]
[356827873,1743274323500,-500.0,0.00049863,120]
[356827874,1743274323540,-579.35,0.00049863,120]
[356827875,1743274323583,-1237.71,0.00049863,120]
[356827876,1743274323622,-884.89,0.00049863,120]
[356827877,1743274323665,-453.63832315,0.00049863,120]
[356827878,1743274323704,-500.0,0.00049863,120]
[356827879,1743274323745,-500.0,0.00049863,120]
[356827880,1743274323784,-254.04992992,0.00049899,120]
[356827881,1743274323821,-216.05921298,0.00049992,60]
[356827882,1743274323859,-1000.0,0.00049999,120]
[356827883,1743274323898,-170.52214633,0.00049999,120]
[356827884,1743274323935,-431.116753,0.00049999,120]
[356827885,1743274323973,-402.90436055,0.00049999,120]
[356827886,1743274324010,-172.26720456,0.00049999,120]
[356827887,1743274324049,-385.04001695,0.00049999,120]
[356827888,1743274324089,-500.0,0.00049999,120]
[356827889,1743274324131,-500.0,0.00049999,120]
[356827890,1743274324170,-500.0,0.00049999,120]
[356827891,1743274324209,-500.0,0.00049999,120]
[356827892,1743274324248,-218.41946335,0.00049999,120]
[356827893,1743274324287,-500.0,0.00049999,120]
[356827894,1743274324329,-573.59351183,0.00049999,120]
[356827895,1743274324370,-500.0,0.00049999,120]
[356827896,1743274324413,-50000.0,0.0005,50]
[356827897,1743274324454,-50000.0,0.0005,40]
[356827898,1743274324490,-20985.0,0.0005,120]
[356827899,1743274324524,-1234.20826984,0.0005,120]
[356827900,1743274324732,-1557.16208054,0.0005,120]
[356827901,1743274324768,-1161.41191752,0.0005,120]
[356827902,1743274324803,-565.86513508,0.0005,120]
[356827903,1743274324839,-2583.429973,0.0005,120]
[356827904,1743274324877,-251.95628993,0.0005,120]
[356827905,1743274324914,-212.44515123,0.0005,120]
[356827906,1743274324951,-700.51183568,0.0005,120]
[356827907,1743274324991,-324.07401782,0.0005,120]
[356827908,1743274325029,-183.44203858,0.0005,120]
[356827909,1743274325066,-1000.0,0.0005,120]
[356827910,1743274325103,-938.69610673,0.0005,120]
[356827911,1743274325139,-3000.0,0.0005,120]
[356827912,1743274325176,-314.0,0.0005,120]
[356827913,1743274325212,-208.0,0.0005,120]
[356827914,1743274325248,-392.0,0.0005,120]
[356827915,1743274325283,-488.19405765,0.0005,60]
[356827916,1743274325319,-2591.1495953,0.0005,60]
[356827917,1743274325356,-4025.82052575,0.0005,120]
[356827918,1743274325392,-999.72062819,0.0005,120]
[356827919,1743274325427,-29219.74565775,0.0005,120]
[356827920,1743274325462,-334.0,0.0005,90]
[356827921,1743274325496,-200.0,0.0005,120]
[356827922,1743274325529,-690.4580105,0.0005,120]
[356827923,1743274325565,-803.16,0.0005,120]
[356827924,1743274325600,-915.66,0.0005,120]
[356827925,1743274325637,-200.0,0.0005,120]
[356827926,1743274325673,-1158.24,0.0005,120]
[356827927,1743274325708,-254.18745997,0.0005,120]
[356827928,1743274325745,-640806.51,0.0005,120]
[356827929,1743274325781,-867734.74,0.0005,120]
[356827930,1743274325817,-700.0,0.0005,120]
[356827931,1743274325852,-400.0,0.0005,120]
[356827932,1743274325888,-450.0,0.0005,51]
[356827933,1743274325923,-200.0,0.0005,120]
[356827934,1743274325958,-1470.43,0.00050136,120]
[356827935,1743274325993,-566.18,0.00050136,120]
[356827936,1743274326028,-500.0,0.00050136,120]
[356827937,1743274326063,-500.0,0.00050136,34]
[356827938,1743274326098,-1734.11,0.00050136,120]
[356827939,1743274326133,-500.0,0.00050136,120]
[356827940,1743274326168,-1197.94,0.00050136,120]
[356827941,1743274326202,-1644.35,0.00050136,120]
[356827942,1743274326237,-916.03,0.00050136,120]
[356827943,1743274326272,-1870.6,0.00050136,120]
[356827944,1743274326307,-581.81,0.00050136,120]
[356827945,1743274326343,-500.0,0.00050136,120]
[356827946,1743274326378,-2884.05,0.00050136,120]
[356827947,1743274326413,-500.0,0.00050136,120]
[356827948,1743274326450,-653.98,0.00050136,120]
[356827949,1743274326487,-355.48070205,0.00050136,120]
[356827950,1743274326523,-580.84,0.00050136,120]
[356827951,1743274326562,-582.27,0.00050136,120]
[356827952,1743274326597,-500.0,0.00050136,120]
[356827953,1743274326632,-1506.84,0.00050136,120]
[356827954,1743274326666,-503.10313216,0.00050136,120]
[356827955,1743274326699,-500.0,0.00050136,120]